{"text_format":"1","workbook":"xlsx","n_sheets":2,"sheets":["Rahmenterminplan","Termine 2021-2022"],"not_rendered":{"charts":0,"images":0,"macros":0,"external_links":0,"defined_names":2,"comments":0,"pivot_tables":0},"unopened":[],"bounds":{"document_bytes":16777216,"sheet_cells":100000,"rows_first":2000,"rows_last":500,"rows_between":2000,"halvings":0,"cell_chars":16384,"cell_head_chars":4096},"cells_cut":0,"cells_raw":0,"read":"whole","date_system":"1900"}

{"sheet":"Rahmenterminplan","index":0,"n_rows":350,"n_cols":11,"rows_kept":350,"cut":false,"hidden":false,"merged":[]}
["von","bis","Meldeschluss","Betreff / Maßnahme","Link","Spielart","Kategorie","Disziplin","Verband","Land","Ort"]
["2021-01-06","2021-01-10",null,{"$f":"--- ABGESAGT --- Weltmeisterschaft Dreiband","v":{"$error":"#NAME?"}},"https://www.umb-carom.org/PG289L2/Union-Mondiale-de-Billard.aspx","Karambol","Einzel","Dreiband (MB)","UMB","Türkei","Antalya"]
["2021-01-06","2021-01-10",null," --- VERSCHOBEN ---   Matchroom Weltmeisterschaft Pool","http://www.matchroompool.com/","Pool","Einzel","9-Ball","WPA"]
["2021-01-11","2021-01-13",null,{"$f":"--- ABGESAGT --- Weltmeisterschaft Dreiband Damen","v":{"$error":"#NAME?"}},null,"Karambol","Einzel","Dreiband (MB)","UMB","Türkei","Antalya"]
["2021-01-14","2021-01-16",null,{"$f":"--- ABGESAGT --- Weltmeisterschaft Dreiband Junioren","v":{"$error":"#NAME?"}},null,"Karambol","Einzel","Dreiband (MB)","UMB","Türkei","Antalya"]
["2021-01-22","2021-01-30",null,{"$f":"--- ABGESAGT --- Derby City Classic","v":{"$error":"#NAME?"}},"https://derbycityclassic.com/","Pool","Einzel","Mehrere Disziplinen",null,"Vereinigte Staaten von Amerika","Elizabeth, IN"]
["2021-01-25","2021-01-31",null,"--- ABGESAGT --- Survival 3C Masters",null,"Karambol","Einzel","Dreiband (MB)","UMB","Südkorea"]
["2021-02-01","2021-02-06",null,"--- VERSCHOBEN --- Predator 10-Ball Open",null,"Pool","Einzel","10-Ball","WPA"]
["2021-02-08","2021-02-13",null,"--- VERSCHOBEN --- International 9-Ball Open","https://www.international9ballopen.com/","Pool","Einzel","9-Ball",null,"Vereinigte Staaten von Amerika","Norfolk, VA"]
["2021-02-17","2021-02-17",null,"Aschermittwoch",null,"Allgemein"]
["2021-02-19","2021-02-21","2020-07-31",{"$f":"--- VERSCHOBEN --- Europameisterschaft Dreiband Team","v":{"$error":"#NAME?"}},null,"Karambol","Mannschaft","Dreiband (MB)","CEB","Türkei","Antalya"]
["2021-02-22","2021-02-28",null,{"$f":"--- ABGESAGT --- World Cup Dreiband","v":{"$error":"#NAME?"}},null,"Karambol","Einzel","Dreiband (MB)","UMB","Türkei"]
["2021-03-03","2021-03-06",null," --- VERSCHOBEN ---   Las Vegas Open","https://www.playcsipool.com/","Pool","Einzel","10-Ball",null,"Vereinigte Staaten von Amerika","Las Vegas"]
["2021-03-07","2021-03-13",null,{"$f":"--- ABGESAGT --- World Cup Dreiband","v":{"$error":"#NAME?"}},null,"Karambol","Einzel","Dreiband (MB)","UMB","Vereinigte Staaten von Amerika","Las Vegas"]
["2021-03-08","2021-03-12",null," --- VERSCHOBEN ---   Predator Weltmeisterschaft ","https://www.world10ball.com/","Pool","Einzel","10-Ball","WPA","Vereinigte Staaten von Amerika","Las Vegas"]
["2021-03-18","2021-03-21",null," --- ABGESAGT --- Weltmeisterschaft Dreiband Nationalteams",null,"Karambol","Mannschaft","Dreiband (MB)","UMB","Deutschland","Viersen"]
["2021-03-25","2021-03-28",null," --- ABGESAGT ---   Coupe d'Europe Classic Teams - Qualifikation &amp; Finale",null,"Karambol","Mannschaft","Mehrere Disziplinen","CEB","Frankreich","Douarnenez"]
["2021-04-02","2021-04-02",null,"Karfreitag",null,"Allgemein"]
["2021-04-03","2021-04-03",null,"Ostersamstag",null,"Allgemein"]
["2021-04-04","2021-04-04",null,"Ostersonntag",null,"Allgemein"]
["2021-04-05","2021-04-05",null,"Ostermontag ",null,"Allgemein"]
["2021-04-05","2021-04-11",null," --- ABGESAGT ---   Survival 3C Masters",null,"Karambol","Einzel","Dreiband (MB)","UMB","Südkorea"]
["2021-04-07","2021-04-10",null,{"$f":"--- VERSCHOBEN --- Players Championship","v":{"$error":"#NAME?"}},"https://wpapool.com/","Pool","Einzel","9-Ball","WPA","Vereinigte Staaten von Amerika","Las Vegas"]
["2021-04-12","2021-04-17",null," --- ABGESAGT ---   US Open Pool Championship","http://www.matchroompool.com/","Pool","Einzel","9-Ball","WPA","Vereinigte Staaten von Amerika","Las Vegas"]
["2021-04-16","2021-04-18",null," --- VERSCHOBEN ---   Europameisterschaft Einband","http://www.eurobillard.org","Karambol","Einzel","Einband (MB)","CEB","Spanien","Paiporta"]
["2021-04-16","2021-04-18",null,"Lehrgang Dreiband (Gruppe 1)",null,"Karambol","Ausbildung","Dreiband (MB)","DBU","Deutschland","Bottrop / Berlin"]
["2021-04-16","2021-04-18",null,"Lehrgang Dreiband (Gruppe 2)",null,"Karambol","Ausbildung","Dreiband (MB)","DBU","Deutschland","Herten"]
["2021-04-23","2021-04-25",null," --- ABGESAGT ---   Europameisterschaft Freie (TB) Partie Damen","https://www.eurobillard.org/events/EC+Libre+Ladies-212.html#infos","Karambol","Einzel","Freie Partie (TB)","CEB","Österreich","Melk"]
["2021-04-23","2021-04-25",null," --- ABGESAGT ---   Europameisterschaft Freie Partie (MB) Damen","https://www.eurobillard.org/events/EC+Libre+Ladies-212.html#infos","Karambol","Einzel","Freie Partie (MB)","CEB","Österreich","Melk"]
["2021-05-07","2021-05-09",null," --- VERSCHOBEN ---   Europameisterschaft Dreiband Damen",null,"Karambol","Einzel","Dreiband (MB)","CEB","Belgien","Zoersel"]
["2021-05-07","2021-05-09",null,"Lehrgang Dreiband (Gruppe 1 | CR)","http://portal.billardarea.de/content/kader-1","Karambol","Ausbildung","Dreiband (MB)","DBU","Deutschland","Bottrop"]
["2021-05-08","2021-05-08",null,"DBU Hauptausschuss",null,"Allgemein",null,null,"DBU"]
["2021-05-09","2021-05-14",null,"World Cup of Pool","http://www.matchroompool.com","Pool","Mannschaft","9-Ball","WPA","Großbritannien und Nordirland","Milton Keynes"]
["2021-05-13","2021-05-13",null,"Christi Himmelfahrt",null,"Allgemein"]
["2021-05-13","2021-05-16",null," --- ABGESAGT ---   Coupe d'Europe 5-Pins für National-Teams","https://www.eurobillard.org/events/coupe+deurope+5pins+national+teams-230.html","Kegel","Mannschaft","5-Kegel","CEB","Österreich","Hall Tirol"]
["2021-05-14","2021-05-16",null,"Lehrgang Pool (Gruppe 2 | TD)","http://portal.billardarea.de/content/kader-1","Pool","Ausbildung","9-Ball","DBU","Deutschland"]
["2021-05-14","2021-05-16",null,"Lehrgang Pool (NK | GG/CR)","http://portal.billardarea.de/content/kader-1","Pool","Ausbildung","9-Ball","DBU","Deutschland"]
["2021-05-21","2021-05-22",null," --- ABGESAGT ---   Europameisterschaft Cadre 71/2",null,"Karambol","Einzel","Cadre 71/2 (MB)","CEB","Frankreich","Montbrison "]
["2021-05-22","2021-05-25",null,"World Pool Masters","http://www.matchroompool.com/","Pool","Einzel","9-Ball","WPA","Gibraltar","Gibraltar"]
["2021-05-23","2021-05-23",null,"Pfingstsonntag",null,"Allgemein"]
["2021-05-23","2021-05-24","2020-05-25"," --- ABGESAGT ---   Europameisterschaft Cadre 47/2",null,"Karambol","Einzel","Cadre 47/2 (MB)","CEB","Frankreich","Montbrison "]
["2021-05-24","2021-05-24",null,"Pfingstmontag",null,"Allgemein"]
["2021-05-24","2021-05-30",null," --- ABGESAGT ---   World Cup Dreiband",null,"Karambol","Einzel","Dreiband (MB)","UMB","Vietnam","Ho Chi Minh City"]
["2021-05-28","2021-05-30",null," --- VERSCHOBEN ---   CEB Grand Prix Artistique",null,"Karambol","Einzel","Artistique (MB)","CEB","Niederlande","Rosmalen"]
["2021-05-28","2021-05-30",null,"Lehrgang Pool (Gruppe 1 | MW)","http://portal.billardarea.de/content/kader-1","Pool","Ausbildung","9-Ball","DBU","Deutschland"]
["2021-05-28","2021-05-30",null,"Lehrgang Pool (NK | GG/CR)","http://portal.billardarea.de/content/kader-1","Pool","Ausbildung","9-Ball","DBU","Deutschland"]
["2021-06-03","2021-06-03",null,"Fronleichnam",null,"Allgemein"]
["2021-06-03","2021-06-06",null," --- ABGESAGT ---   Coupe d'Europe (Club-Teams)","https://www.eurobillard.org/events/coupe+europe+5pins-223.html","Kegel","Mannschaft","5-Kegel","CEB","Belgien","Roeselare"]
["2021-06-04","2021-06-06",null,"Lehrgang Pool (Gruppe 2 | TD)","http://portal.billardarea.de/content/kader-1","Pool","Ausbildung","9-Ball","DBU","Deutschland"]
["2021-06-05","2021-06-05",null,"Sitzung mit Vertretern der Landesverbände",null,"Allgemein",null,null,"DBU"]
["2021-06-06","2021-06-10",null,"Weltmeisterschaft 9-Ball","http://www.matchroompool.com","Pool","Einzel","9-Ball","WPA","Großbritannien und Nordirland","Milton Keynes"]
["2021-06-08","2021-06-12","2021-04-01"," --- ABGESAGT ---   Europameisterschaft Dreiband Einzel","https://www.eurobillard.org/events/ec+3c+individual-214.html","Karambol","Einzel","Dreiband (MB)","CEB","Niederlande","Berlicum"]
["2021-06-11","2021-06-13",null,"Lehrgang Dreiband (Gruppe 2 | JK)","http://portal.billardarea.de/content/kader-1","Karambol","Ausbildung","Dreiband (MB)","DBU","Deutschland"]
["2021-06-17","2021-06-20",null,"Euro Tour 9-Ball","https://www.epbf.com/tournaments/eurotour","Pool","Einzel","9-Ball","EPBF","Österreich","St. Johann im Pongau"]
["2021-06-18","2021-06-20",null,"Lehrgang Pool (Gruppe 1 | MW)","http://portal.billardarea.de/content/kader-1","Pool","Ausbildung","9-Ball","DBU","Deutschland"]
["2021-06-18","2021-06-20",null,"Lehrgang Pool (Gruppe 2 | TD)","http://portal.billardarea.de/content/kader-1","Pool","Ausbildung","9-Ball","DBU","Deutschland"]
["2021-06-18","2021-06-20",null,"Lehrgang Pool (NK | GG/CR)","http://portal.billardarea.de/content/kader-1","Pool","Ausbildung","9-Ball","DBU","Deutschland"]
["2021-06-18","2021-06-20",null,"Lehrgang Snooker (Gruppe 1 | TH)","http://portal.billardarea.de/content/kader-1","Snooker","Ausbildung","15-reds","DBU","Deutschland"]
["2021-06-18","2021-06-20",null,"Lehrgang Snooker (Gruppe 2 | FS)","http://portal.billardarea.de/content/kader-1","Snooker","Ausbildung","15-reds","DBU","Deutschland"]
["2021-06-19","2021-06-19","2020-05-04","CEB Kongress","https://www.eurobillard.org/events/ceb+congress+2021-213.html","Allgemein","Allgemein",null,"DBU","Spanien","Valencia"]
["2021-06-19","2021-06-20",null,"Euro Tour 9-Ball Damen","https://www.epbf.com/tournaments/eurotour-women/","Pool","Einzel","9-Ball","EPBF","Österreich","St. Johann im Pongau"]
["2021-06-20","2021-06-20",null," --- VERSCHOBEN ---   UMB-Kongress",null,"Karambol",null,null,"UMB","Spanien","Valencia"]
["2021-06-21","2021-06-27",null," --- ABGESAGT ---   Survival 3C Masters",null,"Karambol","Einzel","Dreiband (MB)","UMB","Südkorea"]
["2021-06-24","2021-06-27",null," --- ABGESAGT ---   Europameisterschaft Artistique","http://www.eurobillard.org","Karambol","Einzel","Artistique (MB)","CEB","Spanien","Gandia"]
["2021-06-25","2021-06-27",null,"Lehrgang Dreiband (Gruppe 2 | JK)","http://portal.billardarea.de/content/kader-1","Karambol","Ausbildung","Dreiband (MB)","DBU","Deutschland"]
["2021-06-29","2021-07-04",null," --- VERSCHOBEN ---   Coupe d'Europe Dreiband - Qualifikation &amp; Finale",null,"Karambol","Mannschaft","Dreiband (MB)","CEB","Portugal","Porto"]
["2021-07-01","2021-07-01",null,"Beginn Saison 2021/2022",null,"Allgemein",null,null,"DBU"]
["2021-07-01","2021-07-01",null,"Archivierung BillardArea Saison 2020/2021",null,"Allgemein",null,null,"DBU"]
["2021-07-01","2021-07-31",null,"Wechselfrist",null,"Allgemein",null,null,"DBU"]
["2021-07-02","2021-07-04",null,"Lehrgang Pool (Gruppe 1 | MW)","http://portal.billardarea.de/content/kader-1","Pool","Ausbildung","9-Ball","DBU","Deutschland"]
["2021-07-02","2021-07-04",null,"Lehrgang Pool (NK | GG/CR)","http://portal.billardarea.de/content/kader-1","Pool","Ausbildung","9-Ball","DBU","Deutschland"]
["2021-07-05","2021-07-11",null," --- ABGESAGT ---   World Cup Dreiband",null,"Karambol","Einzel","Dreiband (MB)","UMB","Portugal","Porto"]
["2021-07-09","2021-07-11",null,"Lehrgang Pool (Gruppe 2 | TD)","http://portal.billardarea.de/content/kader-1","Pool","Ausbildung","9-Ball","DBU","Deutschland"]
["2021-07-12","2021-07-18",null,"WPA Weltranglistenturnier","https://wpapool.com/calendar/","Pool","Einzel",null,"WPA"]
["2021-07-16","2021-07-18",null,"Lehrgang Dreiband (Gruppe 1 | CR)","http://portal.billardarea.de/content/kader-1","Karambol","Ausbildung","Dreiband (MB)","DBU","Deutschland"]
["2021-07-16","2021-07-18",null,"Lehrgang Snooker (Gruppe 1 | TH)","http://portal.billardarea.de/content/kader-1","Snooker","Ausbildung","15-reds","DBU","Deutschland"]
["2021-07-16","2021-07-18",null,"Lehrgang Snooker (Gruppe 2 | FS)","http://portal.billardarea.de/content/kader-1","Snooker","Ausbildung","15-reds","DBU","Deutschland"]
["2021-07-22","2021-07-24",null,"Tallinn Open",null,"Pool","Einzel","9-Ball","EPBF","Estland (Reval)","Tallinn"]
["2021-07-23","2021-07-25",null,"Lehrgang Pool (Gruppe 1 | MW)","http://portal.billardarea.de/content/kader-1","Pool","Ausbildung","9-Ball","DBU","Deutschland"]
["2021-07-24","2021-07-25",null,"Relegation 2021/2022 (falls erforderlich)",null,"Karambol","Mannschaft","Dreiband (MB)","DBU","Deutschland"]
["2021-07-24","2021-07-25",null,"Relegation 2021/2022 (falls erforderlich)",null,"Pool","Mannschaft",null,"DBU","Deutschland"]
["2021-07-24","2021-07-25",null,"Relegation 2021/2022 (falls erforderlich)",null,"Snooker","Mannschaft","15-reds","DBU","Deutschland"]
["2021-07-27","2021-08-01",null,"US Pro Tour","https://www.playcsipool.com/","Pool","Einzel",null,null,"Vereinigte Staaten von Amerika"]
["2021-07-28","2021-07-30",null,"Lehrgang Pool (Vorbereitung EM Jugend)","http://portal.billardarea.de/content/kader-1","Pool","Ausbildung","9-Ball","DBU","Deutschland"]
["2021-08-01","2021-08-08",null,"Europameisterschaft Pool U17/U19/Girls","https://www.epbf.com/tournaments/european-championships/","Pool","Einzel","Mehrere Disziplinen","EPBF","Slowenien","Laako"]
["2021-08-05","2021-08-08",null," --- ABGESAGT ---   Europameisterschaft Freie Partie U21","https://www.eurobillard.org/events/euro+youth+2021-255.html#infos","Karambol","Einzel","Freie Partie (MB)","CEB","Tschechische Republik","Ostrava"]
["2021-08-05","2021-08-08",null," --- ABGESAGT ---   Europameisterschaft Freie Partie U17","https://www.eurobillard.org/events/euro+youth+2021-255.html#infos","Karambol","Einzel","Freie Partie (TB)","CEB","Tschechische Republik","Ostrava"]
["2021-08-05","2021-08-08",null," --- ABGESAGT ---   Europameisterschaft 5-Kegel U21","https://www.eurobillard.org/events/euro+youth+2021-255.html#infos","Kegel","Einzel","5-Kegel","CEB","Tschechische Republik","Ostrava"]
["2021-08-05","2021-08-08",null," --- ABGESAGT ---   Europameisterschaft Dreiband U21","https://www.eurobillard.org/events/euro+youth+2021-255.html#infos","Karambol","Einzel","Dreiband (MB)","CEB","Tschechische Republik","Ostrava"]
["2021-08-05","2021-08-08",null," --- ABGESAGT ---   Europameisterschaft Dreiband U17","https://www.eurobillard.org/events/euro+youth+2021-255.html#infos","Karambol","Einzel","Dreiband (TB)","CEB","Tschechische Republik","Ostrava"]
["2021-08-07","2021-08-08","2021-07-25","DBU Grand Prix Eurokegel","http://portal.billardarea.de/cms_single","Kegel","Einzel","Eurokegel","DBU","Deutschland"]
["2021-08-12","2021-08-14",null,"Euro Tour 9-Ball","https://www.epbf.com/tournaments/eurotour/","Pool","Einzel","9-Ball","DBU","Slowenien","Laako"]
["2021-08-13","2021-08-15",null,"Lehrgang Snooker (Gruppe 1 | TH)","http://portal.billardarea.de/content/kader-1","Snooker","Ausbildung","15-reds","DBU","Deutschland"]
["2021-08-13","2021-08-15",null,"Lehrgang Snooker (Gruppe 2 | FS)","http://portal.billardarea.de/content/kader-1","Snooker","Ausbildung","15-reds","DBU","Deutschland"]
["2021-08-14","2021-08-15",null,"Euro Tour 9-Ball Damen","http://www.epbf.com/tournaments/eurotour-women","Pool","Einzel","9-Ball","EPBF","Slowenien","Laako"]
["2021-08-15","2021-08-15",null,"Mariä Himmelfahrt",null,"Allgemein"]
["2021-08-16","2021-08-22",null,"Survival 3C Masters",null,"Karambol","Einzel","Dreiband (MB)","UMB","Südkorea"]
["2021-08-21","2021-08-22","2021-08-08","DBU Grand Prix BK2-kombi","http://portal.billardarea.de/cms_single","Kegel","Einzel","BK2-kombi","DBU","Deutschland"]
["2021-08-24","2021-08-29",null,"Coupe d'Europe Dreiband Club-Teams",null,"Karambol","Mannschaft","Dreiband (MB)","CEB","Portugal","Porto"]
["2021-08-25","2021-08-29",null,"Internationales Einladungsturnier 5-Kegel","https://www.eurobillard.org/pages/events-29.html","Kegel","Einzel","5-Kegel","CEB","Tschechische Republik","Kladno"]
["2021-08-27","2021-08-29",null,"Lehrgang Pool (Gruppe 1 | MW) | Ausweichtermin","http://portal.billardarea.de/content/kader-1","Pool","Ausbildung","9-Ball","DBU","Deutschland"]
["2021-08-27","2021-08-29",null,"Lehrgang Pool (Gruppe 2 | TD) | Ausweichtermin","http://portal.billardarea.de/content/kader-1","Pool","Ausbildung","9-Ball","DBU","Deutschland"]
["2021-08-27","2021-08-29",null,"Lehrgang Snooker (Gruppe 1 | TH)","http://portal.billardarea.de/content/kader-1","Snooker","Ausbildung","15-reds","DBU","Deutschland"]
["2021-08-27","2021-08-29",null,"Lehrgang Snooker (Gruppe 2 | FS)","http://portal.billardarea.de/content/kader-1","Snooker","Ausbildung","15-reds","DBU","Deutschland"]
["2021-08-28","2021-08-29",null,"DBU Team-Pokal Dreiband",null,"Karambol","Mannschaft","Dreiband (MB)","DBU","Deutschland"]
["2021-09-01","2021-09-04",null,"Las Vegas Open","http://www.playcsipool.com","Pool","Ausbildung","10-Ball","WPA","Vereinigte Staaten von Amerika","Las Vegas, NV"]
["2021-09-03","2021-09-05",null,"Lehrgang Pool (Vorbereitung WM Jugend)","http://portal.billardarea.de/content/kader-1","Pool","Ausbildung","9-Ball","DBU","Deutschland"]
["2021-09-03","2021-09-06",null,"Ljubljana Open",null,"Pool","Einzel","9-Ball","EPBF","Slowenien","Ljubljana"]
["2021-09-06","2021-09-10",null,"Weltmeisterschaft 10-Ball Herren","http://www.world10ball.com","Pool","Einzel","10-Ball","WPA","Vereinigte Staaten von Amerika","Las Vegas, NV"]
["2021-09-06","2021-09-12",null,"World Cup Dreiband",null,"Karambol","Einzel","Dreiband (MB)","UMB","Südkorea"]
["2021-09-09","2021-09-11",null,"Weltmeisterschaft 9-Ball U17/U19/Girls",null,"Pool","Einzel","9-Ball","DBU","Vereinigte Staaten von Amerika","Las Vegas, NV"]
["2021-09-10","2021-09-12",null,"Europameisterschaft Einband (MB)","https://www.eurobillard.org/pages/events-29.html","Karambol","Einzel","Einband (MB)","CEB","Spanien","Paiporta"]
["2021-09-10","2021-09-12",null,"Lehrgang Dreiband (Gruppe 1 | CR)","http://portal.billardarea.de/content/kader-1","Karambol","Ausbildung","Dreiband (MB)","DBU","Deutschland"]
["2021-09-10","2021-09-12",null,"Lehrgang Snooker (Vorbereitung EM G1)","http://portal.billardarea.de/content/kader-1","Snooker","Ausbildung","15-reds","DBU","Deutschland"]
["2021-09-10","2021-09-12",null,"Lehrgang Snooker (Vorbereitung EM G2)","http://portal.billardarea.de/content/kader-1","Snooker","Ausbildung","15-reds","DBU","Deutschland"]
["2021-09-11","2021-09-12","2021-08-29",{"$f":"--- entfällt --- DBU Grand Prix Dreiband Masters","v":{"$error":"#NAME?"}},"http://portal.billardarea.de/cms_single","Karambol","Einzel","Dreiband (MB)","DBU","Deutschland","Bottrop"]
["2021-09-11","2021-09-13",null,"Lehrgang Kegel (Vorbereitung WM)",null,"Kegel","Ausbildung","5-Kegel","DBU"]
["2021-09-14","2021-09-18",null,"Kremlin Cup",null,"Pool","Einzel","10-Ball","WPA","Russische Föderation","Moskau"]
["2021-09-15","2021-09-19",null,"Weltmeisterschaft 5-Kegel","http://www.umb-carom.org/PG289L2/Union-Mondiale-de-Billard.aspx","Kegel","Einzel","5-Kegel","UMB","Italien","Calangianus"]
["2021-09-17","2021-09-19",null,"Lehrgang Dreiband (Gruppe 2 | JK)","http://portal.billardarea.de/content/kader-1","Karambol","Ausbildung","Dreiband (MB)","DBU","Deutschland"]
["2021-09-18","2021-09-19","2021-09-05","DBU Grand Prix Eurokegel","http://portal.billardarea.de/cms_single","Kegel","Einzel","Eurokegel","DBU","Deutschland"]
["2021-09-19","2021-09-19",null,"Jugend-Regionalliga Pool","http://portal.billardarea.de/cms_leagues","Pool","Mannschaft","Mehrere Disziplinen","DBU","Deutschland","siehe Spielplan"]
["2021-09-20","2021-09-20",null,"Weltkindertag",null,"Allgemein"]
["2021-09-21","2021-09-26",null,"US Pro Tour","https://www.playcsipool.com/","Pool","Einzel",null,null,"Vereinigte Staaten von Amerika"]
["2021-09-25","2021-09-25",null,"1./2. Bundesliga Dreiband","http://portal.billardarea.de/cms_leagues","Karambol","Mannschaft","Dreiband (MB)","DBU","Deutschland","siehe Spielplan"]
["2021-09-25","2021-09-25",null,"1./2. Bundesliga Pool + Regionalliga Pool","http://portal.billardarea.de/cms_leagues","Pool","Mannschaft","Mehrere Disziplinen","DBU","Deutschland","siehe Spielplan"]
["2021-09-25","2021-09-25",null,"1./2. Bundesliga Snooker","http://portal.billardarea.de/cms_leagues","Snooker","Mannschaft","15-reds","DBU","Deutschland","siehe Spielplan"]
["2021-09-26","2021-09-26",null,"1./2. Bundesliga Dreiband","http://portal.billardarea.de/cms_leagues","Karambol","Mannschaft","Dreiband (MB)","DBU","Deutschland","siehe Spielplan"]
["2021-09-26","2021-09-26",null,"1./2. Bundesliga Pool + Regionalliga Pool","http://portal.billardarea.de/cms_leagues","Pool","Mannschaft","Mehrere Disziplinen","DBU","Deutschland","siehe Spielplan"]
["2021-09-26","2021-09-26",null,"1./2. Bundesliga Snooker","http://portal.billardarea.de/cms_leagues","Snooker","Mannschaft","15-reds","DBU","Deutschland","siehe Spielplan"]
["2021-09-28","2021-09-30",null,"Weltmeisterschaft Dreiband Damen","https://www.umb-carom.org/PG340L2/Union-Mondiale-de-Billard.aspx","Karambol","Einzel","Dreiband (MB)","UMB","Niederlande","Heerhugowaard"]
["2021-09-29","2021-10-01",null,"Euro Tour 9-Ball","http://www.epbf.com/tournaments/eurotour","Pool","Einzel","9-Ball","EPBF","Bulgarien","Petritsch"]
["2021-09-30","2021-10-10",null,"Weltermeisterschaft 10-Ball Damen","https://wpapool.com/calendar/","Pool","Einzel","10-Ball","WPA","Österreich"]
["2021-09-30","2021-10-10",null,"Weltmeisterschaft Teams","https://wpapool.com/calendar/","Pool","Mannschaft","Mehrere Disziplinen","WPA","Österreich"]
["2021-10-01","2021-10-02",null,"Lehrgang Dreiband (Gruppe 2 | JK)","http://portal.billardarea.de/content/kader-1","Karambol","Ausbildung","Dreiband (MB)","DBU","Deutschland"]
["2021-10-01","2021-10-03",null,"Weltmeisterschaft Dreiband U21","https://www.umb-carom.org/PG340L2/Union-Mondiale-de-Billard.aspx","Karambol","Einzel","Dreiband (MB)","UMB","Niederlande","Heerhugowaard"]
["2021-10-01","2021-10-03",null,"Lehrgang Pool (NK | GG/CR)","http://portal.billardarea.de/content/kader-1","Pool","Ausbildung","9-Ball","DBU","Deutschland"]
["2021-10-02","2021-10-02",null,"DMM 5-Kegel","http://portal.billardarea.de/cms_leagues","Kegel","Mannschaft","5-Kegel","DBU","Deutschland","siehe Spielplan"]
["2021-10-03","2021-10-03",null,"Tag der Deutschen Einheit",null,"Allgemein"]
["2021-10-03","2021-10-03",null,"DMM 5-Kegel","http://portal.billardarea.de/cms_leagues","Kegel","Mannschaft","5-Kegel","DBU","Deutschland","siehe Spielplan"]
["2021-10-04","2021-10-11",null,"Europameisterschaft Pool Ladies/Senioren","http://www.epbf.com/tournaments/european-championships","Pool","Einzel","Mehrere Disziplinen","EPBF","Bulgarien","Petritsch"]
["2021-10-08","2021-10-10",null,"Lehrgang Dreiband (Gruppe 1 | CR)","http://portal.billardarea.de/content/kader-1","Karambol","Ausbildung","Dreiband (MB)","DBU","Deutschland"]
["2021-10-09","2021-10-10","2021-09-26","DBU Grand Prix Biathlon","http://portal.billardarea.de/cms_single","Kegel","Einzel","Biathlon","DBU","Deutschland"]
["2021-10-12","2021-10-16",null,"Internationales Turnier (Termin reserviert)",null,"Pool","Einzel","9-Ball","WPA"]
["2021-10-15","2021-10-17",null,"Etienne Hekkelman Memorial Tournament",null,"Pool","Einzel","9-Ball","EPBF"]
["2021-10-15","2021-10-17",null,"Lehrgang Pool (Vorbereitung EM)","http://portal.billardarea.de/content/kader-1","Pool","Ausbildung","9-Ball","DBU","Deutschland"]
["2021-10-16","2021-10-16",null,"1./2. Bundesliga Dreiband","http://portal.billardarea.de/cms_leagues","Karambol","Mannschaft","Dreiband (MB)","DBU","Deutschland","siehe Spielplan"]
["2021-10-17","2021-10-17",null,"1./2. Bundesliga Dreiband","http://portal.billardarea.de/cms_leagues","Karambol","Mannschaft","Dreiband (MB)","DBU","Deutschland","siehe Spielplan"]
["2021-10-20","2021-10-24",null,"Weltmeisterschaft Dreiband","https://www.umb-carom.org/PG340L2/Union-Mondiale-de-Billard.aspx","Karambol","Einzel","Dreiband (MB)","UMB","Südkorea"]
["2021-10-22","2021-10-28",null,"Deutsche Jugend-Meisterschaften","http://portal.billardarea.de/cms_single","Karambol","Einzel","Mehrere Disziplinen","DBU","Deutschland","Bad Wildungen"]
["2021-10-22","2021-10-28",null,"Deutsche Jugend-Meisterschaften","http://portal.billardarea.de/cms_single","Kegel","Einzel","Mehrere Disziplinen","DBU","Deutschland","Bad Wildungen"]
["2021-10-22","2021-10-28",null,"Deutsche Jugend-Meisterschaften","http://portal.billardarea.de/cms_single","Pool","Einzel","Mehrere Disziplinen","DBU","Deutschland","Bad Wildungen"]
["2021-10-22","2021-10-28",null,"Deutsche Jugend-Meisterschaften","http://portal.billardarea.de/cms_single","Snooker","Einzel","Mehrere Disziplinen","DBU","Deutschland","Bad Wildungen"]
["2021-10-22","2021-10-30",null,"US International Open","http://www.international9ballopen.com","Pool","Einzel","Mehrere Disziplinen","WPA","Vereinigte Staaten von Amerika","Norfolk"]
["2021-10-28","2021-10-30",null,"Euro Tour 9-Ball","http://www.epbf.com/tournaments/eurotour","Pool","Einzel","9-Ball","EPBF","Türkei","Antalya"]
["2021-10-28","2021-10-30",null,"Euro Tour 9-Ball Damen","http://www.epbf.com/tournaments/eurotour-women","Pool","Einzel","9-Ball","EPBF","Türkei","Antalya"]
["2021-10-28","2021-11-07","2021-09-15","Deutsche Meisterschaften","http://portal.billardarea.de/cms_single","Karambol","Einzel","Mehrere Disziplinen","DBU","Deutschland","Bad Wildungen"]
["2021-10-28","2021-11-07","2021-09-15","Deutsche Meisterschaften","http://portal.billardarea.de/cms_single","Kegel","Einzel","Mehrere Disziplinen","DBU","Deutschland","Bad Wildungen"]
["2021-10-28","2021-11-07","2021-09-15","Deutsche Meisterschaften","http://portal.billardarea.de/cms_single","Pool","Einzel","Mehrere Disziplinen","DBU","Deutschland","Bad Wildungen"]
["2021-10-28","2021-11-07","2021-09-15","Deutsche Meisterschaften","http://portal.billardarea.de/cms_single","Snooker","Einzel","Mehrere Disziplinen","DBU","Deutschland","Bad Wildungen"]
["2021-10-29","2021-10-31",null,"Lehrgang Snooker (Gruppe 1 | TH)","http://portal.billardarea.de/content/kader-1","Snooker","Ausbildung","15-reds","DBU","Deutschland"]
["2021-10-29","2021-10-31",null,"Lehrgang Snooker (Gruppe 2 | FS)","http://portal.billardarea.de/content/kader-1","Snooker","Ausbildung","15-reds","DBU","Deutschland"]
["2021-10-31","2021-10-31",null,"Reformationstag",null,"Allgemein"]
["2021-10-31","2021-11-04",null,"American 14.1 Straight Pool Championship","https://americanstraightpool.com/","Pool","Einzel",null,null,"Vereinigte Staaten von Amerika","Virginia Beach, VA"]
["2021-11-01","2021-11-01",null,"Allerheiligen",null,"Allgemein"]
["2021-11-01","2021-11-11",null,"Europameisterschaft Pool Damen/Herren/Rollstuhl","http://www.epbf.com/tournaments/european-championships","Pool","Einzel","Mehrere Disziplinen","EPBF","Türkei","Antalya"]
["2021-11-01","2021-11-11",null,"Europameisterschaft Pool U23","http://www.epbf.com/tournaments/european-championships","Pool","Einzel","Mehrere Disziplinen","EPBF","Türkei","Antalya"]
["2021-11-06","2021-11-06",null,"1./2. Bundesliga Dreiband","http://portal.billardarea.de/cms_leagues","Karambol","Mannschaft","Dreiband (MB)","DBU","Deutschland","siehe Spielplan"]
["2021-11-07","2021-11-07",null,"1./2. Bundesliga Dreiband","http://portal.billardarea.de/cms_leagues","Karambol","Mannschaft","Dreiband (MB)","DBU","Deutschland","siehe Spielplan"]
["2021-11-08","2021-11-14",null,"World Cup Dreiband",null,"Karambol","Einzel","Dreiband (MB)","UMB","Niederlande","Veghel"]
["2021-11-14","2021-11-14",null,"Volkstrauertag",null,"Allgemein"]
["2021-11-15","2021-11-20",null,"US Pro Tour","https://www.playcsipool.com/","Pool","Einzel",null,null,"Vereinigte Staaten von Amerika"]
["2021-11-17","2021-11-17",null,"Buß- und Bettag",null,"Allgemein"]
["2021-11-19","2021-11-21",null,"Lausanne Billard Masters Dreiband",null,"Karambol","Einzel","Dreiband (MB)","UMB","Schweiz","Lausanne"]
["2021-11-19","2021-11-21",null,"Lehrgang Pool (Gruppe 1 | MW)","http://portal.billardarea.de/content/kader-1","Pool","Ausbildung","9-Ball","DBU","Deutschland"]
["2021-11-19","2021-11-21",null,"Lehrgang Pool (Gruppe 2 | TD)","http://portal.billardarea.de/content/kader-1","Pool","Ausbildung","9-Ball","DBU","Deutschland"]
["2021-11-19","2021-11-21",null,"Lehrgang Pool (NK | GG/CR)","http://portal.billardarea.de/content/kader-1","Pool","Ausbildung","9-Ball","DBU","Deutschland"]
["2021-11-20","2021-11-20",null,"DMM 5-Kegel","http://portal.billardarea.de/cms_leagues","Kegel","Mannschaft","5-Kegel","DBU","Deutschland","siehe Spielplan"]
["2021-11-21","2021-11-21",null,"Totensonntag",null,"Allgemein"]
["2021-11-21","2021-11-21",null,"DMM 5-Kegel","http://portal.billardarea.de/cms_leagues","Kegel","Mannschaft","5-Kegel","DBU","Deutschland","siehe Spielplan"]
["2021-11-22","2021-11-28",null,"Survival 3C Masters",null,"Karambol","Einzel","Dreiband (MB)","UMB","Südkorea"]
["2021-11-25","2021-11-27",null,"Euro Tour 9-Ball","http://www.epbf.com/tournaments/eurotour","Pool","Einzel","9-Ball","EPBF","Italien","Treviso"]
["2021-11-26","2021-11-28",null,"Lehrgang Dreiband (Gruppe 1 | CR)","http://portal.billardarea.de/content/kader-1","Karambol","Ausbildung","Dreiband (MB)","DBU","Deutschland"]
["2021-11-27","2021-11-27",null,"1./2. Bundesliga Dreiband","http://portal.billardarea.de/cms_leagues","Karambol","Mannschaft","Dreiband (MB)","DBU","Deutschland","siehe Spielplan"]
["2021-11-27","2021-11-28",null,"Euro Tour 9-Ball Damen","http://www.epbf.com/tournaments/eurotour-women","Pool","Einzel","9-Ball","EPBF","Italien","Treviso"]
["2021-11-28","2021-11-28",null,"1./2. Bundesliga Dreiband","http://portal.billardarea.de/cms_leagues","Karambol","Mannschaft","Dreiband (MB)","DBU","Deutschland","siehe Spielplan"]
["2021-11-28","2021-11-28",null,"1. Advent",null,"Allgemein"]
["2021-11-28","2021-11-28",null,"Jugend-Regionalliga Pool","http://portal.billardarea.de/cms_leagues","Pool","Mannschaft","Mehrere Disziplinen","DBU","Deutschland","siehe Spielplan"]
["2021-12-04","2021-12-04",null,"1./2. Bundesliga Pool + Regionalliga Pool","http://portal.billardarea.de/cms_leagues","Pool","Mannschaft","Mehrere Disziplinen","DBU","Deutschland","siehe Spielplan"]
["2021-12-04","2021-12-04",null,"1./2. Bundesliga Snooker","http://portal.billardarea.de/cms_leagues","Snooker","Mannschaft","15-reds","DBU","Deutschland","siehe Spielplan"]
["2021-12-05","2021-12-05",null,"2. Advent",null,"Allgemein"]
["2021-12-05","2021-12-05",null,"1./2. Bundesliga Pool + Regionalliga Pool","http://portal.billardarea.de/cms_leagues","Pool","Mannschaft","Mehrere Disziplinen","DBU","Deutschland","siehe Spielplan"]
["2021-12-05","2021-12-05",null,"1./2. Bundesliga Snooker","http://portal.billardarea.de/cms_leagues","Snooker","Mannschaft","15-reds","DBU","Deutschland","siehe Spielplan"]
["2021-12-05","2021-12-11",null,"World Cup Dreiband",null,"Karambol","Einzel","Dreiband (MB)","UMB","Ägypten","Sharm El Sheikh"]
["2021-12-06","2021-12-06",null,"Nikolaus",null,"Allgemein"]
["2021-12-06","2021-12-09",null,"Mosconi Cup","http://www.matchroompool.com","Pool","Einzel","9-Ball","WPA","Vereinigte Staaten von Amerika","Las Vegas, NV"]
["2021-12-10","2021-12-12",null,"Lehrgang Pool (Gruppe 1 | MW)","http://portal.billardarea.de/content/kader-1","Pool","Ausbildung","9-Ball","DBU","Deutschland"]
["2021-12-10","2021-12-12",null,"Lehrgang Pool (Gruppe 2 | TD)","http://portal.billardarea.de/content/kader-1","Pool","Ausbildung","9-Ball","DBU","Deutschland"]
["2021-12-10","2021-12-12",null,"Lehrgang Snooker (Gruppe 1 | TH)","http://portal.billardarea.de/content/kader-1","Snooker","Ausbildung","15-reds","DBU","Deutschland"]
["2021-12-10","2021-12-12",null,"Lehrgang Snooker (Gruppe 2 | FS)","http://portal.billardarea.de/content/kader-1","Snooker","Ausbildung","15-reds","DBU","Deutschland"]
["2021-12-11","2021-12-11",null,"DMM 5-Kegel","http://portal.billardarea.de/cms_leagues","Kegel","Mannschaft","5-Kegel","DBU","Deutschland","siehe Spielplan"]
["2021-12-12","2021-12-12",null,"3. Advent",null,"Allgemein"]
["2021-12-12","2021-12-12",null,"DMM 5-Kegel","http://portal.billardarea.de/cms_leagues","Kegel","Mannschaft","5-Kegel","DBU","Deutschland","siehe Spielplan"]
["2021-12-17","2021-12-19",null,"Cuelemans Continental Cup","https://www.umb-carom.org/PG340L2/Union-Mondiale-de-Billard.aspx","Karambol","Einzel","Dreiband (MB)","UMB","Südkorea"]
["2021-12-18","2021-12-18",null,"1./2. Bundesliga Dreiband","http://portal.billardarea.de/cms_leagues","Karambol","Mannschaft","Dreiband (MB)","DBU","Deutschland","siehe Spielplan"]
["2021-12-19","2021-12-19",null,"4. Advent",null,"Allgemein"]
["2021-12-19","2021-12-19",null,"1./2. Bundesliga Dreiband","http://portal.billardarea.de/cms_leagues","Karambol","Mannschaft","Dreiband (MB)","DBU","Deutschland","siehe Spielplan"]
["2021-12-24","2021-12-24",null,"Heiligabend",null,"Allgemein"]
["2021-12-25","2021-12-25",null,"1. Weihnachtsfeiertag",null,"Allgemein"]
["2021-12-26","2021-12-26",null,"2. Weihnachtsfeiertag",null,"Allgemein"]
["2021-12-31","2021-12-31",null,"Silvester",null,"Allgemein"]
["2022-01-01","2022-01-01",null,"Neujahr",null,"Allgemein"]
["2022-01-06","2022-01-06",null,"Heilige Drei Könige",null,"Allgemein"]
["2022-01-06","2022-01-09",null,"Turning Stone Classic","http://www.joss9balltour.com/","Pool","Einzel","9-Ball",null,"Vereinigte Staaten von Amerika","Verona, NY"]
["2022-01-08","2022-01-08",null,"1./2. Bundesliga Dreiband","http://portal.billardarea.de/cms_leagues","Karambol","Mannschaft","Dreiband (MB)","DBU","Deutschland","siehe Spielplan"]
["2022-01-09","2022-01-09",null,"1./2. Bundesliga Dreiband","http://portal.billardarea.de/cms_leagues","Karambol","Mannschaft","Dreiband (MB)","DBU","Deutschland","siehe Spielplan"]
["2022-01-15","2022-01-15",null,"1./2. Bundesliga Dreiband | Ersatzspieltag","http://portal.billardarea.de/cms_leagues","Karambol","Mannschaft","Dreiband (MB)","DBU","Deutschland","siehe Spielplan"]
["2022-01-15","2022-01-15",null,"DMM 5-Kegel","http://portal.billardarea.de/cms_leagues","Kegel","Mannschaft","5-Kegel","DBU","Deutschland","siehe Spielplan"]
["2022-01-15","2022-01-15",null,"1./2. Bundesliga Pool + Regionalliga Pool","http://portal.billardarea.de/cms_leagues","Pool","Mannschaft","Mehrere Disziplinen","DBU","Deutschland","siehe Spielplan"]
["2022-01-15","2022-01-15",null,"1./2. Bundesliga Snooker","http://portal.billardarea.de/cms_leagues","Snooker","Mannschaft","15-reds","DBU","Deutschland","siehe Spielplan"]
["2022-01-16","2022-01-16",null,"1./2. Bundesliga Dreiband | Ersatzspieltag","http://portal.billardarea.de/cms_leagues","Karambol","Mannschaft","Dreiband (MB)","DBU","Deutschland","siehe Spielplan"]
["2022-01-16","2022-01-16",null,"DMM 5-Kegel","http://portal.billardarea.de/cms_leagues","Kegel","Mannschaft","5-Kegel","DBU","Deutschland","siehe Spielplan"]
["2022-01-16","2022-01-16",null,"1./2. Bundesliga Pool + Regionalliga Pool","http://portal.billardarea.de/cms_leagues","Pool","Mannschaft","Mehrere Disziplinen","DBU","Deutschland","siehe Spielplan"]
["2022-01-16","2022-01-16",null,"1./2. Bundesliga Snooker","http://portal.billardarea.de/cms_leagues","Snooker","Mannschaft","15-reds","DBU","Deutschland","siehe Spielplan"]
["2022-01-21","2022-01-23","2022-01-09","DBU Grand Prix Dreiband","http://portal.billardarea.de/cms_single","Karambol","Einzel","Dreiband (MB)","DBU","Deutschland"]
["2022-01-21","2022-01-29",null,"Derby City Classic","https://derbycityclassic.com/","Pool","Einzel","9-Ball",null,"Vereinigte Staaten von Amerika","Elizabeth, IN"]
["2022-01-23","2022-01-23","2022-01-09","DBU Team-Pokal 8-Ball",null,"Pool","Mannschaft","8-Ball","DBU","Deutschland"]
["2022-01-28","2022-01-30",null,"Lehrgang Dreiband (Gruppe 1 | CR)","http://portal.billardarea.de/content/kader-1","Karambol","Ausbildung","Dreiband (MB)","DBU","Deutschland"]
["2022-01-28","2022-01-30",null,"Lehrgang Dreiband (Gruppe 2 | JK)","http://portal.billardarea.de/content/kader-1","Karambol","Ausbildung","Dreiband (MB)","DBU","Deutschland"]
["2022-01-28","2022-01-30",null,"Lehrgang Pool (Gruppe 1 | MW)","http://portal.billardarea.de/content/kader-1","Pool","Ausbildung","9-Ball","DBU","Deutschland"]
["2022-01-28","2022-01-30",null,"Lehrgang Pool (Gruppe 2 | TD)","http://portal.billardarea.de/content/kader-1","Pool","Ausbildung","9-Ball","DBU","Deutschland"]
["2022-01-28","2022-01-30",null,"Lehrgang Pool (NK | GG/CR)","http://portal.billardarea.de/content/kader-1","Pool","Ausbildung","9-Ball","DBU","Deutschland"]
["2022-01-28","2022-01-30",null,"Lehrgang Snooker (Gruppe 1 | TH)","http://portal.billardarea.de/content/kader-1","Snooker","Ausbildung","15-reds","DBU","Deutschland"]
["2022-01-28","2022-01-30",null,"Lehrgang Snooker (Gruppe 2 | FS)","http://portal.billardarea.de/content/kader-1","Snooker","Ausbildung","15-reds","DBU","Deutschland"]
["2022-01-29","2022-01-30","2022-01-16","DBU Grand Prix Eurokegel","http://portal.billardarea.de/cms_single","Kegel","Einzel","Eurokegel","DBU","Deutschland"]
["2022-01-31","2022-02-06",null,"Survival 3C Masters","https://www.umb-carom.org/PG340L2/Union-Mondiale-de-Billard.aspx","Karambol","Einzel","Dreiband (MB)","UMB","Südkorea"]
["2022-02-05","2022-02-05",null,"1./2. Bundesliga Dreiband | Ersatzspieltag","http://portal.billardarea.de/cms_leagues","Karambol","Mannschaft","Dreiband (MB)","DBU","Deutschland","siehe Spielplan"]
["2022-02-05","2022-02-05",null,"1./2. Bundesliga Pool + Regionalliga Pool | Ersatzspieltag 1. Saisonhälfte","http://portal.billardarea.de/cms_leagues","Pool","Mannschaft","Mehrere Disziplinen","DBU","Deutschland","siehe Spielplan"]
["2022-02-05","2022-02-05",null,"1./2. Bundesliga Snooker | Ersatzspieltag 1. Saisonhälfte","http://portal.billardarea.de/cms_leagues","Snooker","Mannschaft","15-reds","DBU","Deutschland","siehe Spielplan"]
["2022-02-05","2022-02-06","2022-01-23","DBU Grand Prix 5-Kegel","http://portal.billardarea.de/cms_single","Kegel","Einzel","5-Kegel","DBU","Deutschland"]
["2022-02-06","2022-02-06",null,"Jugend-Regionalliga Pool","http://portal.billardarea.de/cms_leagues","Pool","Mannschaft","Mehrere Disziplinen","DBU","Deutschland","siehe Spielplan"]
["2022-02-06","2022-02-06",null,"1./2. Bundesliga Snooker | Ersatzspieltag 1. Saisonhälfte","http://portal.billardarea.de/cms_leagues","Snooker","Mannschaft","15-reds","DBU","Deutschland","siehe Spielplan"]
["2022-02-06","2022-02-06",null,"1./2. Bundesliga Dreiband | Ersatzspieltag","http://portal.billardarea.de/cms_leagues","Karambol","Mannschaft","Dreiband (MB)","DBU","Deutschland","siehe Spielplan"]
["2022-02-06","2022-02-06",null,"1./2. Bundesliga Pool + Regionalliga Pool | Ersatzspieltag 1. Saisonhälfte","http://portal.billardarea.de/cms_leagues","Pool","Mannschaft","Mehrere Disziplinen","DBU","Deutschland","siehe Spielplan"]
["2022-02-12","2022-02-12",null,"1./2. Bundesliga Dreiband","http://portal.billardarea.de/cms_leagues","Karambol","Mannschaft","Dreiband (MB)","DBU","Deutschland","siehe Spielplan"]
["2022-02-12","2022-02-13","2022-01-30","DBU Grand Prix ...","http://portal.billardarea.de/cms_single","Pool","Einzel",null,"DBU","Deutschland"]
["2022-02-13","2022-02-13",null,"1./2. Bundesliga Dreiband","http://portal.billardarea.de/cms_leagues","Karambol","Mannschaft","Dreiband (MB)","DBU","Deutschland","siehe Spielplan"]
["2022-02-19","2022-02-19",null,"DMM 5-Kegel","http://portal.billardarea.de/cms_leagues","Kegel","Mannschaft","5-Kegel","DBU","Deutschland","siehe Spielplan"]
["2022-02-19","2022-02-19",null,"1./2. Bundesliga Pool + Regionalliga Pool","http://portal.billardarea.de/cms_leagues","Pool","Mannschaft","Mehrere Disziplinen","DBU","Deutschland","siehe Spielplan"]
["2022-02-19","2022-02-19",null,"1./2. Bundesliga Snooker","http://portal.billardarea.de/cms_leagues","Snooker","Mannschaft","15-reds","DBU","Deutschland","siehe Spielplan"]
["2022-02-20","2022-02-20",null,"DMM 5-Kegel","http://portal.billardarea.de/cms_leagues","Kegel","Mannschaft","5-Kegel","DBU","Deutschland","siehe Spielplan"]
["2022-02-20","2022-02-20",null,"1./2. Bundesliga Pool + Regionalliga Pool","http://portal.billardarea.de/cms_leagues","Pool","Mannschaft","Mehrere Disziplinen","DBU","Deutschland","siehe Spielplan"]
["2022-02-20","2022-02-20",null,"1./2. Bundesliga Snooker","http://portal.billardarea.de/cms_leagues","Snooker","Mannschaft","15-reds","DBU","Deutschland","siehe Spielplan"]
["2022-02-21","2022-02-27",null,"World Cup Dreiband","https://www.umb-carom.org/PG340L2/Union-Mondiale-de-Billard.aspx","Karambol","Einzel","Dreiband (MB)","UMB","Türkei"]
["2022-03-04","2022-03-06","2022-02-20","DBU Grand Prix Dreiband","http://portal.billardarea.de/cms_single","Karambol","Einzel","Dreiband (MB)","DBU","Deutschland"]
["2022-03-05","2022-03-06","2022-02-20","DBU Grand Prix ...","http://portal.billardarea.de/cms_single","Pool","Einzel",null,"DBU","Deutschland"]
["2022-03-08","2022-03-08",null,"Internationaler Frauentag",null,"Allgemein"]
["2022-03-08","2022-03-09",null,"Lehrgang Dreiband (Vorbereitung Team-WM)","http://portal.billardarea.de/content/kader-1","Karambol","Ausbildung","Dreiband (MB)","DBU","Deutschland"]
["2022-03-10","2022-03-13",null,"Weltmeisterschaft Dreiband Nationalteams","https://www.umb-carom.org/PG340L2/Union-Mondiale-de-Billard.aspx","Karambol","Mannschaft","Dreiband (MB)","UMB","Deutschland","Viersen"]
["2022-03-12","2022-03-12",null,"DMM 5-Kegel","http://portal.billardarea.de/cms_leagues","Kegel","Mannschaft","5-Kegel","DBU","Deutschland","siehe Spielplan"]
["2022-03-13","2022-03-13",null,"DMM 5-Kegel","http://portal.billardarea.de/cms_leagues","Kegel","Mannschaft","5-Kegel","DBU","Deutschland","siehe Spielplan"]
["2022-03-12","2022-03-12",null,"Jugend-Regionalliga Pool","http://portal.billardarea.de/cms_leagues","Pool","Mannschaft","Mehrere Disziplinen","DBU","Deutschland","siehe Spielplan"]
["2022-03-19","2022-03-19",null,"1./2. Bundesliga Dreiband","http://portal.billardarea.de/cms_leagues","Karambol","Mannschaft","Dreiband (MB)","DBU","Deutschland","siehe Spielplan"]
["2022-03-19","2022-03-19",null,"1./2. Bundesliga Pool + Regionalliga Pool","http://portal.billardarea.de/cms_leagues","Pool","Mannschaft","Mehrere Disziplinen","DBU","Deutschland","siehe Spielplan"]
["2022-03-19","2022-03-19",null,"1./2. Bundesliga Snooker","http://portal.billardarea.de/cms_leagues","Snooker","Mannschaft","15-reds","DBU","Deutschland","siehe Spielplan"]
["2022-03-20","2022-03-20",null,"1./2. Bundesliga Dreiband","http://portal.billardarea.de/cms_leagues","Karambol","Mannschaft","Dreiband (MB)","DBU","Deutschland","siehe Spielplan"]
["2022-03-20","2022-03-20",null,"1./2. Bundesliga Pool + Regionalliga Pool","http://portal.billardarea.de/cms_leagues","Pool","Mannschaft","Mehrere Disziplinen","DBU","Deutschland","siehe Spielplan"]
["2022-03-20","2022-03-20",null,"1./2. Bundesliga Snooker","http://portal.billardarea.de/cms_leagues","Snooker","Mannschaft","15-reds","DBU","Deutschland","siehe Spielplan"]
["2022-03-25","2022-03-27",null,"Lehrgang Pool (Gruppe 1 | MW)","http://portal.billardarea.de/content/kader-1","Pool","Ausbildung","9-Ball","DBU","Deutschland"]
["2022-03-25","2022-03-27",null,"Lehrgang Pool (Gruppe 2 | TD)","http://portal.billardarea.de/content/kader-1","Pool","Ausbildung","9-Ball","DBU","Deutschland"]
["2022-03-25","2022-03-27",null,"Lehrgang Pool (NK | GG/CR)","http://portal.billardarea.de/content/kader-1","Pool","Ausbildung","9-Ball","DBU","Deutschland"]
["2022-03-25","2022-03-27",null,"Lehrgang Snooker (Gruppe 1 | TH)","http://portal.billardarea.de/content/kader-1","Snooker","Ausbildung","15-reds","DBU","Deutschland"]
["2022-03-25","2022-03-27",null,"Lehrgang Snooker (Gruppe 2 | FS)","http://portal.billardarea.de/content/kader-1","Snooker","Ausbildung","15-reds","DBU","Deutschland"]
["2022-03-27","2022-04-02",null,"World Cup Dreiband","https://www.umb-carom.org/PG340L2/Union-Mondiale-de-Billard.aspx","Karambol","Einzel","Dreiband (MB)","UMB","Vereinigte Staaten von Amerika","Las Vegas, NV"]
["2022-04-02","2022-04-02",null,"DMM 5-Kegel","http://portal.billardarea.de/cms_leagues","Kegel","Mannschaft","5-Kegel","DBU","Deutschland","siehe Spielplan"]
["2022-04-02","2022-04-03","2022-03-20","DBU Grand Prix ...","http://portal.billardarea.de/cms_single","Pool","Einzel",null,"DBU","Deutschland"]
["2022-04-03","2022-04-03",null,"DMM 5-Kegel","http://portal.billardarea.de/cms_leagues","Kegel","Mannschaft","5-Kegel","DBU","Deutschland","siehe Spielplan"]
["2022-04-09","2022-04-09",null,"1./2. Bundesliga Dreiband","http://portal.billardarea.de/cms_leagues","Karambol","Mannschaft","Dreiband (MB)","DBU","Deutschland","siehe Spielplan"]
["2022-04-09","2022-04-09",null,"1./2. Bundesliga Pool + Regionalliga Pool","http://portal.billardarea.de/cms_leagues","Pool","Mannschaft","Mehrere Disziplinen","DBU","Deutschland","siehe Spielplan"]
["2022-04-09","2022-04-09",null,"1./2. Bundesliga Snooker","http://portal.billardarea.de/cms_leagues","Snooker","Mannschaft","15-reds","DBU","Deutschland","siehe Spielplan"]
["2022-04-09","2022-04-10","2022-03-27","Deutsche Meisterschaft Eurokegel Doppel",null,"Kegel","Mannschaft","Eurokegel","DBU","Deutschland"]
["2022-04-10","2022-04-10",null,"1./2. Bundesliga Dreiband","http://portal.billardarea.de/cms_leagues","Karambol","Mannschaft","Dreiband (MB)","DBU","Deutschland","siehe Spielplan"]
["2022-04-10","2022-04-10",null,"1./2. Bundesliga Pool + Regionalliga Pool","http://portal.billardarea.de/cms_leagues","Pool","Mannschaft","Mehrere Disziplinen","DBU","Deutschland","siehe Spielplan"]
["2022-04-10","2022-04-10",null,"1./2. Bundesliga Snooker","http://portal.billardarea.de/cms_leagues","Snooker","Mannschaft","15-reds","DBU","Deutschland","siehe Spielplan"]
["2022-04-15","2022-04-15",null,"Karfreitag",null,"Allgemein"]
["2022-04-17","2022-04-17",null,"Ostersonntag",null,"Allgemein"]
["2022-04-18","2022-04-18",null,"Ostermontag",null,"Allgemein"]
["2022-04-18","2022-04-24",null,"SBX Pro Players Championship","https://superbilliardsexpo.com/","Pool","Einzel","10-Ball",null,"Vereinigte Staaten von Amerika","Oaks, PA"]
["2022-04-19","2022-04-23","2022-01-31","Deutsche Jugend-Meisterschaften","http://portal.billardarea.de/cms_single","Karambol","Einzel","Mehrere Disziplinen","DBU","Deutschland","Bad Wildungen"]
["2022-04-19","2022-04-23","2022-01-31","Deutsche Jugend-Meisterschaften","http://portal.billardarea.de/cms_single","Kegel","Einzel","Mehrere Disziplinen","DBU","Deutschland","Bad Wildungen"]
["2022-04-19","2022-04-23","2022-01-31","Deutsche Jugend-Meisterschaften","http://portal.billardarea.de/cms_single","Pool","Einzel","Mehrere Disziplinen","DBU","Deutschland","Bad Wildungen"]
["2022-04-19","2022-04-23","2022-01-31","Deutsche Jugend-Meisterschaften","http://portal.billardarea.de/cms_single","Snooker","Einzel","Mehrere Disziplinen","DBU","Deutschland","Bad Wildungen"]
["2022-04-22","2022-04-24",null,"Europameisterschaft Freie Partie (TB) Damen","https://www.eurobillard.org/pages/events-29.html","Karambol","Einzel","Freie Partie (TB)","CEB","Österreich","Melk"]
["2022-04-22","2022-04-24","2022-04-10","DBU Grand Prix Dreiband","http://portal.billardarea.de/cms_single","Karambol","Einzel","Dreiband (MB)","DBU","Deutschland"]
["2022-04-30","2022-04-30",null,"1./2. Bundesliga Dreiband","http://portal.billardarea.de/cms_leagues","Karambol","Mannschaft","Dreiband (MB)","DBU","Deutschland","siehe Spielplan"]
["2022-04-30","2022-04-30",null,"1./2. Bundesliga Pool + Regionalliga Pool | Ersatzspieltag 2. Saisonhälfte","http://portal.billardarea.de/cms_leagues","Pool","Mannschaft","Mehrere Disziplinen","DBU","Deutschland","siehe Spielplan"]
["2022-04-30","2022-04-30",null,"1./2. Bundesliga Snooker | Ersatzspieltag 2. Saisonhälfte","http://portal.billardarea.de/cms_leagues","Snooker","Mannschaft","15-reds","DBU","Deutschland","siehe Spielplan"]
["2022-04-30","2022-05-01","2022-04-17","Deutsche Meisterschaft 5-Kegel (Senioren)",null,"Kegel","Einzel","5-Kegel","DBU","Deutschland"]
["2022-05-01","2022-05-01",null,"Tag der Arbeit",null,"Allgemein"]
["2022-05-01","2022-05-01",null,"1./2. Bundesliga Dreiband","http://portal.billardarea.de/cms_leagues","Karambol","Mannschaft","Dreiband (MB)","DBU","Deutschland","siehe Spielplan"]
["2022-05-01","2022-05-01",null,"1./2. Bundesliga Pool + Regionalliga Pool | Ersatzspieltag 2. Saisonhälfte","http://portal.billardarea.de/cms_leagues","Pool","Mannschaft","Mehrere Disziplinen","DBU","Deutschland","siehe Spielplan"]
["2022-05-01","2022-05-01",null,"1./2. Bundesliga Snooker | Ersatzspieltag 2. Saisonhälfte","http://portal.billardarea.de/cms_leagues","Snooker","Mannschaft","15-reds","DBU","Deutschland","siehe Spielplan"]
["2022-05-06","2022-05-08",null,"Lehrgang Dreiband (Gruppe 1 | CR)","http://portal.billardarea.de/content/kader-1","Karambol","Ausbildung","Dreiband (MB)","DBU","Deutschland"]
["2022-05-06","2022-05-08",null,"Lehrgang Dreiband (Gruppe 2 | JK)","http://portal.billardarea.de/content/kader-1","Karambol","Ausbildung","Dreiband (MB)","DBU","Deutschland"]
["2022-05-07","2022-05-08","2022-04-24","DBU Grand Prix ...","http://portal.billardarea.de/cms_single","Pool","Einzel",null,"DBU","Deutschland"]
["2022-05-07","2022-05-09",null,"Lehrgang Kegel (Vorbereitung Coupe d'Europe)",null,"Kegel","Ausbildung","5-Kegel","DBU"]
["2022-05-12","2022-05-15",null,"Coupe d'Europe 5-Kegel Nationalmannschaften","https://www.eurobillard.org/pages/events-29.html","Kegel","Mannschaft","5-Kegel","CEB","Österreich","Hall in Tirol"]
["2022-05-14","2022-05-14",null,"1./2. Bundesliga Dreiband","http://portal.billardarea.de/cms_leagues","Karambol","Mannschaft","Dreiband (MB)","DBU","Deutschland","siehe Spielplan"]
["2022-05-14","2022-05-14",null,"1./2. Bundesliga Pool + Regionalliga Pool","http://portal.billardarea.de/cms_leagues","Pool","Mannschaft","Mehrere Disziplinen","DBU","Deutschland","siehe Spielplan"]
["2022-05-14","2022-05-14",null,"1./2. Bundesliga Snooker","http://portal.billardarea.de/cms_leagues","Snooker","Mannschaft","15-reds","DBU","Deutschland","siehe Spielplan"]
["2022-05-14","2022-05-15","2022-05-01","DBU Grand Prix BK2-kombi","http://portal.billardarea.de/cms_single","Kegel","Einzel","BK2-kombi","DBU","Deutschland"]
["2022-05-15","2022-05-15",null,"1./2. Bundesliga Dreiband","http://portal.billardarea.de/cms_leagues","Karambol","Mannschaft","Dreiband (MB)","DBU","Deutschland","siehe Spielplan"]
["2022-05-15","2022-05-15",null,"1./2. Bundesliga Pool + Regionalliga Pool","http://portal.billardarea.de/cms_leagues","Pool","Mannschaft","Mehrere Disziplinen","DBU","Deutschland","siehe Spielplan"]
["2022-05-15","2022-05-15",null,"1./2. Bundesliga Snooker","http://portal.billardarea.de/cms_leagues","Snooker","Mannschaft","15-reds","DBU","Deutschland","siehe Spielplan"]
["2022-05-21","2022-05-22","2022-05-08","DBU Grand Prix Biathlon","http://portal.billardarea.de/cms_single","Kegel","Einzel","Biathlon","DBU","Deutschland"]
["2022-05-22","2022-05-22",null,"Playoff Jugend-Regionalliga Pool","http://portal.billardarea.de/cms_leagues","Pool","Mannschaft","Mehrere Disziplinen","DBU","Deutschland","siehe Spielplan"]
["2022-05-23","2022-05-29",null,"World Cup Dreiband","https://www.umb-carom.org/PG340L2/Union-Mondiale-de-Billard.aspx","Karambol","Einzel","Dreiband (MB)","UMB","Vietnam","Ho-Chi-Minh-Stadt"]
["2022-05-25","2022-05-29","2022-04-22","Deutsche Meisterschaft Cadre 35/2","http://portal.billardarea.de/cms_single","Karambol","Einzel","Cadre 35/2 (TB)","DBU","Deutschland"]
["2022-05-25","2022-05-29","2022-04-22","Deutsche Meisterschaft Cadre 52/2","http://portal.billardarea.de/cms_single","Karambol","Einzel","Cadre 52/2 (TB)","DBU","Deutschland"]
["2022-05-25","2022-05-29","2022-04-22","Deutsche Meisterschaft Cadre 47/2","http://portal.billardarea.de/cms_single","Karambol","Einzel","Cadre 47/2 (MB)","DBU","Deutschland"]
["2022-05-25","2022-05-29","2022-04-22","Deutsche Meisterschaft Cadre 71/2","http://portal.billardarea.de/cms_single","Karambol","Einzel","Cadre 71/2 (MB)","DBU","Deutschland"]
["2022-05-25","2022-05-29","2022-04-22","Deutsche Meisterschaft Einband (TB)","http://portal.billardarea.de/cms_single","Karambol","Einzel","Einband (TB)","DBU","Deutschland"]
["2022-05-25","2022-05-29","2022-04-22","Deutsche Meisterschaft Einband (MB)","http://portal.billardarea.de/cms_single","Karambol","Einzel","Einband (MB)","DBU","Deutschland"]
["2022-05-26","2022-05-26",null,"Christi Himmelfahrt",null,"Allgemein"]
["2022-05-28","2021-05-29",null,"Relegation 2022/2023",null,"Pool","Mannschaft","Mehrere Disziplinen","DBU","Deutschland"]
["2022-05-28","2021-05-29",null,"Aufstiegsrunde Snooker 2022/2023",null,"Snooker","Mannschaft","15-reds","DBU","Deutschland"]
["2022-05-28","2022-05-29","2022-05-15","DBU Team-Pokal Eurokegel",null,"Kegel","Mannschaft","Eurokegel","DBU","Deutschland"]
["2022-06-03","2022-06-05",null,"Lehrgang Dreiband (Gruppe 1 | CR)","http://portal.billardarea.de/content/kader-1","Karambol","Ausbildung","Dreiband (MB)","DBU","Deutschland"]
["2022-06-03","2022-06-05",null,"Lehrgang Dreiband (Gruppe 2 | JK)","http://portal.billardarea.de/content/kader-1","Karambol","Ausbildung","Dreiband (MB)","DBU","Deutschland"]
["2022-06-03","2022-06-06",null,"Europameisterschaft Cadre 71/2","https://www.eurobillard.org/pages/events-29.html","Karambol","Einzel","Cadre 71/2 (MB)","CEB","Frankreich","Montbrison"]
["2022-06-03","2022-06-06",null,"Europameisterschaft Cadre 47/2","https://www.eurobillard.org/pages/events-29.html","Karambol","Einzel","Cadre 47/2 (MB)","CEB","Frankreich","Montbrison"]
["2022-06-05","2022-06-05",null,"Pfingstsonntag",null,"Allgemein"]
["2022-06-06","2022-06-06",null,"Pfingstmontag",null,"Allgemein"]
["2022-06-10","2022-06-12",null,"Lehrgang Pool (Gruppe 1 | MW)","http://portal.billardarea.de/content/kader-1","Pool","Ausbildung","9-Ball","DBU","Deutschland"]
["2022-06-10","2022-06-12",null,"Lehrgang Pool (Gruppe 2 | TD)","http://portal.billardarea.de/content/kader-1","Pool","Ausbildung","9-Ball","DBU","Deutschland"]
["2022-06-10","2022-06-12",null,"Lehrgang Pool (NK | GG/CR)","http://portal.billardarea.de/content/kader-1","Pool","Ausbildung","9-Ball","DBU","Deutschland"]
["2022-06-10","2022-06-12",null,"Lehrgang Snooker (Gruppe 1 | TH)","http://portal.billardarea.de/content/kader-1","Snooker","Ausbildung","15-reds","DBU","Deutschland"]
["2022-06-10","2022-06-12",null,"Lehrgang Snooker (Gruppe 2 | FS)","http://portal.billardarea.de/content/kader-1","Snooker","Ausbildung","15-reds","DBU","Deutschland"]
["2022-06-10","2022-06-12","2022-05-29","DBU Grand Prix Dreiband","http://portal.billardarea.de/cms_single","Karambol","Einzel","Dreiband (MB)","DBU","Deutschland"]
["2022-06-11","2022-06-12","2022-05-29","DBU Team-Pokal BK2-kombi",null,"Kegel","Mannschaft","BK2-kombi","DBU","Deutschland"]
["2022-06-16","2022-06-16",null,"Fronleichnam",null,"Allgemein"]
["2022-06-16","2022-06-19","2022-06-05","Länderpokal Pool",null,"Pool","Mannschaft","Mehrere Disziplinen","DBU","Deutschland"]
["2022-06-18","2022-06-18",null,"1./2. Bundesliga Dreiband | Ersatzspieltag","http://portal.billardarea.de/cms_leagues","Karambol","Mannschaft","Dreiband (MB)","DBU","Deutschland","siehe Spielplan"]
["2022-06-18","2022-06-19","2022-06-05","DBU Doppel-Pokal Biathlon (Endrunde)",null,"Kegel","Mannschaft","Biathlon","DBU","Deutschland"]
["2022-06-19","2022-06-19",null,"1./2. Bundesliga Dreiband | Ersatzspieltag","http://portal.billardarea.de/cms_leagues","Karambol","Mannschaft","Dreiband (MB)","DBU","Deutschland","siehe Spielplan"]
["2022-06-20","2022-06-26",null,"World Cup Dreiband","https://www.umb-carom.org/PG340L2/Union-Mondiale-de-Billard.aspx","Karambol","Einzel","Dreiband (MB)","UMB","Portugal","Porto"]
["2022-06-25","2022-06-26","2022-06-12","DBU Grand Prix 5-Kegel","http://portal.billardarea.de/cms_single","Kegel","Einzel","5-Kegel","DBU","Deutschland"]
["2022-06-25","2022-06-26","2022-06-12","Deutsche Meisterschaft 8-Ball Mixed",null,"Pool","Mannschaft","8-Ball","DBU","Deutschland"]
["2022-06-25","2022-06-26","2022-06-12","Länderpokal Snooker",null,"Snooker","Mannschaft","15-reds","DBU","Deutschland"]
["2022-06-30","2022-06-30",null,"Ende Saison 2021/2022",null,"Allgemein",null,null,"DBU"]

{"sheet":"Termine 2021-2022","index":1,"n_rows":108,"n_cols":4,"rows_kept":108,"cut":false,"hidden":false,"merged":[[22,1,27,1],[88,1,89,1],[0,0,0,3],[22,3,27,3]]}
["Terminplan 2021 - 2022  Snooker in Sachsen"]
["Termin","Event","Info","Ort"]
["2021-08-14"]
["2021-08-15"]
["2021-08-21"]
["2021-08-22"]
[{"$f":"A5+7","v":"2021-08-28"}]
[{"$f":"A6+7","v":"2021-08-29"}]
["2021-09-04","Oberliga ","Spieltag 1","siehe Spielplan"]
["2021-09-05","Oberliga ","Spieltag 2","siehe Spielplan"]
[{"$f":"A9+7","v":"2021-09-11"}]
[{"$f":"A10+7","v":"2021-09-12"}]
[{"$f":"A11+7","v":"2021-09-18"},"3 Länder Ranking 1",null,"Limbach-Oberfrohna"]
["2021-09-19"]
["2021-09-25","Bundesliga","Spieltag 1"]
["2021-09-26","Bundesliga","Spieltag 2"]
["2021-10-02","Simplon Open 2021",null,"Hohenstein-E."]
["2021-10-03"]
["2021-10-09","Oberliga ","Spieltag 3","siehe Spielplan"]
["2021-10-10","Oberliga ","Spieltag 4","siehe Spielplan"]
["2021-10-16","3 Länder Ranking 2",null,"Limbach-Oberfrohna"]
["2021-10-17"]
["2021-10-23","Deutsche Jugend Meisterschaft\nund Deutsche Meisterschaft ",null,"Bad Wildungen"]
["2021-10-24"]
["2021-10-30"]
["2021-10-31"]
["2021-11-06"]
["2021-11-07"]
["2021-11-13","Oberliga ","Spieltag 5","siehe Spielplan"]
["2021-11-14","Oberliga ","Spieltag 6","siehe Spielplan"]
["2021-11-20"]
["2021-11-21"]
["2021-11-27","Kaderlehrgang Snooker Jugend - Paul Schopf"]
["2021-11-28","Kaderlehrgang Snooker Jugend - Paul Schopf"]
["2021-12-04","Bundesliga","Spieltag 3"]
["2021-12-05","Bundesliga","Spieltag 4"]
["2021-12-11"]
["2021-12-12"]
["2021-12-18","3 Länder Ranking 3",null,"Limbach-Oberfrohna"]
["2021-12-19"]
["2021-12-25","1. Weihnachtsfeiertag"]
["2021-12-26","2. Weihnachtsfeiertag"]
["2022-01-01","Neujahr"]
["2022-01-02"]
["2022-01-08","Oberliga ","Spieltag 7","siehe Spielplan"]
["2022-01-09","Oberliga ","Spieltag 8","siehe Spielplan"]
["2022-01-15","Bundesliga","Spieltag 5"]
["2022-01-16","Bundesliga","Spieltag 6"]
["2022-01-22"]
["2022-01-23"]
["2022-01-29"]
["2022-01-30"]
["2022-02-05","Bundesliga Ersatzspieltag 1. Saisonhälfte","Spieltag 7"]
["2022-02-06","Bundesliga Ersatzspieltag 1. Saisonhälfte","Spieltag 8"]
["2022-02-12","Oberliga ","Spieltag 9","siehe Spielplan"]
["2022-02-13","Oberliga ","Spieltag 10","siehe Spielplan"]
["2022-02-19","Bundesliga   /   Kadertraining mit Paul Schopf","Spieltag 9","Limbach-Oberfrohna"]
["2022-02-20","Bundesliga   /   Kadertraining mit Paul Schopf","Spieltag 10","Limbach-Oberfrohna"]
["2022-02-26"]
["2022-02-27"]
["2022-03-05","Oberliga ","Spieltag 11","siehe Spielplan"]
["2022-03-06","Oberliga ","Spieltag 12","siehe Spielplan"]
["2022-03-12","3 Länder Ranking 3",null,"Limbach-Oberfrohna"]
["2022-03-13"]
["2022-03-19","Bundesliga","Spieltag 11"]
["2022-03-20","Bundesliga","Spieltag 12"]
["2022-03-26"]
["2022-03-27"]
["2022-04-02","LM Senioren Ü40 - 2022",null,"Limbach-Oberfrohna"]
["2022-04-03","LM U15 U18/U21",null,"Limbach-Oberfrohna"]
["2022-04-09","Bundesliga","Spieltag 13"]
["2022-04-10","Bundesliga","Spieltag 14"]
["2022-04-16","6 Reds LM",null,"SaxMax Dresden"]
["2022-04-17"]
[{"$f":"A73+7","v":"2022-04-23"}]
["2022-04-24"]
[{"$f":"A75+7","v":"2022-04-30"},"Oberliga ","Spieltag 13"]
["2022-05-01","Oberliga ","Spieltag 14"]
["2022-05-07"]
["2022-05-08"]
["2022-05-14","Bundesliga","Spieltag 17"]
["2022-05-15","Bundesliga","Spieltag 18"]
["2022-05-21","3 Länder Ranking 4",null,"Limbach-Oberfrohna"]
["2022-05-22"]
["2022-05-28","Aufstiegsrunde Bundesliga",null,"?"]
["2022-05-29"]
["2022-06-04","Pfingsten"]
["2022-06-05","Pfingsten"]
["2022-06-11","Landesmeister 2022",null,"Dresden Snoobi / SaxMax"]
["2022-06-12",null,null,"Limbach-O."]
["2022-06-18","LM Senioren O60",null,"Snoobi Dresden"]
["2022-06-19","Shoot out",null,"Limbach-O."]
["2022-06-25"]
["2022-06-26"]
["2022-07-02","Team Pokal Doppel",null,"Limbach-O."]
["2022-07-03"]
["2022-07-09"]
["2022-07-10"]
["2022-07-16"]
["2022-07-17"]
["2022-07-23"]
["2022-07-24"]
["2022-07-30"]
["2022-07-31"]
["2022-08-06"]
["2022-08-07"]
["2022-08-13","Champions Cup (Top 16) - 3 Länder Ranking 7"]
["2022-08-14"]